Cogmind - Beta 9.2 @@@ ROGUE MODE // 2019.12.08 @ 21:59:22 Player: agrue8u Result: Destroyed by as-87236 with Assembled Rifle Performance ------------- Evolutions (0) 0 Regions Visited (4) 800 Robots Destroyed (44) 220 Value Destroyed (813) 813 Prototype IDs (22) 440 Alien Tech Used (0) 0 Bonus (152) 152 TOTAL SCORE: 2425 Bonus ------- Aligned with FarCom 300 Friendly Fire -148 Cogmind --------- Core Integrity 0/250 Matter 176/300 Energy 250/250 System Corruption 14% Temperature Cool (0) Movement Walking (180) Ox2 Location -9/Mines Parts ------- > --- POWER (1) -------- Ion Engine > --- PROPULSION (2) --- Aluminum Leg Aluminum Leg > --- UTILITY (2) ------ Large Storage Unit Large Storage Unit > --- WEAPON (2) ------- Light Assault Rifle Rocket Launcher > --- INVENTORY (16) --- Light Ion Engine Light Ion Engine Light Ion Engine Aluminum Leg Aluminum Leg Aluminum Leg Aluminum Leg Aluminum Leg High-capacity Matter Pod (200) Structural Scanner 0b10 Alert Chip EM Pulse Gun Grenade Launcher Peak State ------------ > --- POWER ------------ Light Nuclear Core > --- PROPULSION ------- Aluminum Leg Carbon-fiber Leg > --- UTILITY ---------- Large Storage Unit Large Storage Unit > --- WEAPON ----------- EM Pulse Gun Light Assault Rifle > --- INVENTORY -------- Light Ion Engine Light Ion Engine Light Ion Engine Aluminum Leg Aluminum Leg Aluminum Leg Aluminum Leg Aluminum Leg Aluminum Leg Aluminum Leg Medium Matter Pod Medium Matter Pod Structural Scanner Grenade Launcher Mining Claw [Rating: 12] Favorites ----------- Power Ion Engine Engine Ion Engine Power Core Light Nuclear Core Propulsion Aluminum Leg Leg Aluminum Leg Utility Large Storage Unit Storage Large Storage Unit Processor Seismic Analyzer Weapon EM Pulse Gun Energy Gun EM Pulse Gun Ballistic Gun Light Assault Rifle Launcher Grenade Launcher Special Weapon Mining Laser Slashing Weapon Mining Claw Build | -11 -10 -10 -10 -9 ------- Run | Scr Mat Min Exi Min Slots Evolved . | . . . . . Power . | . . . . . Propulsion . | . . . . . Utility . | . . . . . Weapon . | . . . . . Parts Attached 36 | 8 8 16 . 4 Power 5 | 1 1 3 . . Engine 4 | 1 1 2 . . Core 1 | . . 1 . . Reactor . | . . . . . Propulsion 8 | 2 1 3 . 2 Treads . | . . . . . Leg 8 | 2 1 3 . 2 Wheel . | . . . . . Hover . | . . . . . Flight . | . . . . . Utility 4 | 2 2 . . . Device . | . . . . . Storage 3 | 1 2 . . . Processor 1 | 1 . . . . Hackware . | . . . . . Protection . | . . . . . Artifact . | . . . . . Weapon 19 | 3 4 10 . 2 Energy Gun 8 | 2 3 3 . . Energy Cannon . | . . . . . Ballistic Gun 1 | . . 1 . . Ballistic Cannon . | . . . . . Launcher 6 | . 1 4 . 1 Special Weapon 1 | 1 . . . . Impact Weapon . | . . . . . Slashing Weapon 3 | . . 2 . 1 Piercing Weapon . | . . . . . Special Melee Weapon . | . . . . . Unidentified Prototypes . | . . . . . Parts Lost 9 | . 4 2 . 3 Power 2 | . 1 1 . . Propulsion 2 | . . . . 2 Utility . | . . . . . Weapon 5 | . 3 1 . 1 Highest Loss Streak 3 | . 3 2 . 2 Average Slot Usage (%) 99 | . 98 99 100 95 Engine 13 | . 12 13 14 14 Leg 27 | . 28 28 28 24 Storage 27 | . 23 28 28 28 Energy Gun 8 | . 20 12 . . Ballistic Gun 8 | . . 6 14 14 Launcher 8 | . 3 7 14 6 Slashing Weapon 1 | . . 1 . 7 Naked Turns . | . . . . . Heaviest Build 42 | 12 42 42 41 42 Greatest Support 25 | 20 20 25 20 20 Greatest Overweight (x) 4 | 3 2 2 2 4 Average Overweight (x) 1 | . 1 1 2 2 Largest Inventory Capacity 16 | 6 16 16 16 16 Average Capacity 14 | 5 12 16 16 16 Most Carried 16 | 6 16 16 16 16 Average Carried 14 | 4 9 15 15 14 Final Capacity 16 | 6 16 16 16 16 Final Carried 16 | 6 16 16 16 13 Class Distribution -------------------- 52% | Mutant 47% | Scavenger-Mutant Dominant Class ---------------- Mutant | -10/Materials Mutant | -10/Mines Scavenger-Mutant | -10/Exiles Mutant | -9/Mines Resources | -11 -10 -10 -10 -9 ----------- Run | Scr Mat Min Exi Min Matter Collected 976 | 280 95 587 . 14 Remotely . | . . . . . Salvage Created 997 | 194 151 518 . 134 Parts 63 | 12 7 38 . 6 Haulers Intercepted . | . . . . . Recyclers Shooed . | . . . . . Parts Field Recycled . | . . . . . Retrieved Matter . | . . . . . Parts Self-Destructed . | . . . . . Prevented . | . . . . . Kills | -11 -10 -10 -10 -9 ------- Run | Scr Mat Min Exi Min Combat Hostiles Destroyed 33 | . 4 21 . 8 Guns 6 | . . 6 . . Cannons 1 | . 1 . . . AOE 26 | . 3 15 . 8 Classes Destroyed 8 | 3 1 1 . 3 Worker 1 | 1 . . . . Tunneler 7 | 3 1 3 . . Recycler 2 | 1 . 1 . . Swarmer 12 | . . 12 . . Grunt 15 | . 4 9 . 2 Brawler 1 | . . . . 1 Assembled 5 | . . . . 5 Guerrilla 1 | . . . . 1 Best Kill Streak 5 | 1 3 4 . 5 Combat Bots Only 5 | . 2 3 . 5 Max Kills in Single Turn 3 | 1 2 2 . 3 Gunslinging . | . . . . . Exploded 3 | . 1 2 . 3 Melee . | . . . . . Uniques/NPCs Destroyed . | . . . . . Combat | -11 -10 -10 -10 -9 -------- Run | Scr Mat Min Exi Min Damage Taken 1555 | 12 284 456 . 803 Core 259 | . 47 73 . 139 Absorbed by Shields . | . . . . . Core Remaining (%) 100 | 100 . . . . Volleys Fired 75 | 21 10 35 . 9 Largest 2 | 2 2 2 . 1 Hottest 140 | 100 140 80 . 33 Shots Fired 115 | 38 18 50 . 9 Gun 80 | 36 12 32 . . Cannon . | . . . . . Launcher 30 | . 3 18 . 9 Special 5 | 2 3 . . . Kinetic 11 | . . 11 . . Thermal 27 | 21 6 . . . Explosive 30 | . 3 18 . 9 Electromagnetic 47 | 17 9 21 . . Robot Hit Streak 9 | 9 7 7 . 3 Robot Miss Streak 3 | 3 3 3 . 1 Penetration Max . | . . . . . Secondary Targets . | . . . . . Shots Hit Robots 69 | 22 9 32 . 6 Core Hits 66 | 6 9 36 . 15 Critical Hits . | . . . . . Critical Kills . | . . . . . Critical Parts Destroyed . | . . . . . Melee Attacks 59 | . . 17 . 42 Impact . | . . . . . Slashing 59 | . . 17 . 42 Piercing . | . . . . . Sneak Attacks . | . . . . . Combat Hostiles . | . . . . . Follow-up Attacks . | . . . . . Damage Inflicted 2605 | 298 328 1352 . 627 Guns 537 | 226 90 221 . . Cannons . | . . . . . Explosions 2044 | 72 214 1131 . 627 Melee . | . . . . . Ramming . | . . . . . Kinetic 65 | . . 65 . . Thermal 326 | 195 131 . . . Explosive 1875 | . 117 1131 . 627 Electromagnetic 339 | 103 80 156 . . Impact . | . . . . . Slashing . | . . . . . Piercing . | . . . . . Highest Corruption 14 | . . . . 14 Average Corruption 10 | . . . . 10 Corruption Purged . | . . . . . Effects 11 | . . . . 11 Message Errors 3 | . . . . 3 Matter Fused 2 | . . . . 2 Heat Flow Errors 1 | . . . . 1 Data Loss (minor) 2 | . . . . 2 Targeting Errors 3 | . . . . 3 Overload Shots . | . . . . . Overflow Damage 118 | 26 42 19 . 31 Projectiles . | . . . . . Explosions 118 | 26 42 19 . 31 Melee . | . . . . . Knockbacks . | . . . . . Impact . | . . . . . Kinetic . | . . . . . Secondary . | . . . . . Self-Inflicted Damage 98 | 12 43 31 . 12 Shots 6 | 1 1 2 . 2 Rammed . | . . . . . Targets Rammed . | . . . . . Kicked . | . . . . . Crushed . | . . . . . Highest Temperature 181 | 90 181 38 . 98 Average Temperature 37 | 28 72 17 . 50 Received Heat Transfer 258 | . 135 123 . . Siege Activations . | . . . . . Robots Corrupted . | . . . . . Combat Hostiles . | . . . . . Parts Fried . | . . . . . Impact Corruptions . | . . . . . Robots Melted . | . . . . . Combat Hostiles . | . . . . . Parts Melted . | . . . . . Heat Transferred 550 | 375 175 . . . Parts Sabotaged . | . . . . . Parts Stolen . | . . . . . Parts Stripped . | . . . . . Power Chain Reactions 3 | 2 1 . . . Missiles Intercepted . | . . . . . Alert | -11 -10 -10 -10 -9 ------- Run | Scr Mat Min Exi Min Peak Influence 366 | 25 71 366 . 85 Average Influence 98 | 13 46 156 . 25 Maximum Alert Level 1 | . . 1 . . Low Security (%) 78 | 100 100 59 . 100 Level 1 21 | . . 40 . . Level 2 . | . . . . . Level 3 . | . . . . . Level 4 . | . . . . . Level 5 . | . . . . . High Security . | . . . . . Max Security . | . . . . . Squads Dispatched . | . . . . . Investigation . | . . . . . Extermination . | . . . . . Reinforcement . | . . . . . Assault . | . . . . . Garrison . | . . . . . Intercept . | . . . . . Construction Impeded . | . . . . . Haulers Reinforced . | . . . . . Stealth | -11 -10 -10 -10 -9 --------- Run | Scr Mat Min Exi Min Distress Signals 2 | . 1 1 . . Communications Jammed . | . . . . . Distress Signals . | . . . . . Times Spotted 49 | . 8 20 . 21 Peak Tracking Total 16 | . 3 3 . 16 Tactical Retreats 1 | . . 1 . . Traps | -11 -10 -10 -10 -9 ------- Run | Scr Mat Min Exi Min Traps Triggered . | . . . . . Indirectly . | . . . . . Trap Hack Attempts . | . . . . . Triggered . | . . . . . Disarmed . | . . . . . Reprogrammed . | . . . . . Reused . | . . . . . Traps Extracted . | . . . . . Installed . | . . . . . Triggered . | . . . . . Exploded 1 | . . . 1 . Machines | -11 -10 -10 -10 -9 ---------- Run | Scr Mat Min Exi Min Machines Disabled 2 | . . 1 . 1 Max in Single Turn 1 | . . 1 . 1 Machines Sabotaged . | . . . . . Garrisons Compromised . | . . . . . Overloaded Fab Kills . | . . . . . Fab Network Shutdowns . | . . . . . Hacking | -11 -10 -10 -10 -9 --------- Run | Scr Mat Min Exi Min Machines Accessed 3 | . . . 3 . Terminals . | . . . . . Fabricators . | . . . . . Repair Stations . | . . . . . Recycling Units . | . . . . . Scanalyzers . | . . . . . Garrison Access . | . . . . . Total Hacks 18 | . . . 18 . Successful 18 | . . . 18 . Failed . | . . . . . Catastrophic . | . . . . . Database Lockouts . | . . . . . Manual 1 | . . . 1 . Terminals . | . . . . . Fabricators . | . . . . . Repair Stations . | . . . . . Recycling Units . | . . . . . Scanalyzers . | . . . . . Garrison Access . | . . . . . Terminal Hacks 18 | . . . 18 . Record 17 | . . . 17 . EX-Prototype ID Bank 1 | . . . 1 . Fabricator Hacks . | . . . . . Repair Station Hacks . | . . . . . Recycling Unit Hacks . | . . . . . Scanalyzer . | . . . . . Garrison Access Hacks . | . . . . . Unauthorized Hacks . | . . . . . Terminals . | . . . . . Fabricators . | . . . . . Repair Stations . | . . . . . Recycling Units . | . . . . . Scanalyzers . | . . . . . Garrison Access . | . . . . . Data Cores Recovered . | . . . . . Used . | . . . . . Hacking Detections . | . . . . . Full Trace Events . | . . . . . Feedback Events . | . . . . . Feedback Blocked . | . . . . . Robot Schematics Acquired . | . . . . . Robots Built . | . . . . . Matter . | . . . . . Time . | . . . . . Total Robot Build Rating . | . . . . . Part Schematics Acquired . | . . . . . Parts Built . | . . . . . Matter . | . . . . . Time . | . . . . . Total Part Build Rating . | . . . . . Parts Repaired . | . . . . . Time . | . . . . . Parts Recycled . | . . . . . Recycled Matter . | . . . . . Retrieved Matter . | . . . . . Retrieved Components . | . . . . . Parts Scanalyzed . | . . . . . Part Schematics Acquired . | . . . . . Parts Damaged . | . . . . . Bothacking | -11 -10 -10 -10 -9 ------------ Run | Scr Mat Min Exi Min Used RIF Installer . | . . . . . Robots Hacked . | . . . . . Non-combat . | . . . . . Combat . | . . . . . Robot Hacks Applied . | . . . . . Relay Couplers Released . | . . . . . Robots Rewired . | . . . . . Allies Hacked . | . . . . . Hacks Repelled . | . . . . . Allies | -11 -10 -10 -10 -9 -------- Run | Scr Mat Min Exi Min Total Allies . | . . . . . Largest Group . | . . . . . Highest-Rated Group . | . . . . . Highest-Rated Ally . | . . . . . Total Orders . | . . . . . Ally Attacks . | . . . . . Total Damage . | . . . . . Kills . | . . . . . Allies Corrupted . | . . . . . Allies Melted . | . . . . . Intel | -11 -10 -10 -10 -9 ------- Run | Scr Mat Min Exi Min Robot Analysis Total . | . . . . . Derelict Logs Recovered 2 | . . 2 . . Drone Launches . | . . . . . Drone Recoveries . | . . . . . Exploration | -11 -10 -10 -10 -9 ------------- Run | Scr Mat Min Exi Min Turns Passed 3484 | 256 565 1364 929 370 Spaces Moved 1732 | 145 244 704 516 123 Core 11 | 11 . . . . Treads . | . . . . . Legs 1721 | 134 244 704 516 123 Wheels . | . . . . . Hover . | . . . . . Flight . | . . . . . Fastest Speed 50 | 50 120 150 180 150 Average Speed 166 | 120 161 164 180 180 Slowest Speed 240 | 200 180 180 180 240 Overloaded Moves . | . . . . . Propulsion Burnouts . | . . . . . Robots Hopped . | . . . . . Cave-ins Triggered 3 | . . . . 3 Exploration Rate (%) 50 | 7 27 99 93 26 Regions Visited 4 Branch Regions 3 Pre-discovered Areas . | . . . . . Known Exits Taken . | . . . . . Unknown Exits Taken 4 | 1 1 1 1 . Scrap Searched 4 | . . 4 . . Spaces Dug 67 | 2 1 9 . 55 Terrain Destroyed 328 | 10 16 158 . 144 Melee 51 | . . 9 . 42 Projectile 4 | 2 2 . . . AOE 273 | 8 14 149 . 102 Actions | -11 -10 -10 -10 -9 --------- Run | Scr Mat Min Exi Min Total 2092 | 181 392 824 517 178 Wait 144 | 1 107 36 . . Move 1725 | 144 243 703 515 120 Hop . | . . . . . Pick Up 34 | 7 19 7 1 . Fast Attach 10 | 6 . 4 . . Attach 10 | 1 5 1 . 3 Detach 2 | . 1 1 . . Swap 16 | 1 3 11 . 1 Drop 14 | . 4 9 1 . Fire 75 | 21 10 35 . 9 Melee 59 | . . 17 . 42 Ram . | . . . . . Kick . | . . . . . Crush . | . . . . . Escape Stasis 3 | . . . . 3 Rewire . | . . . . . Trap . | . . . . . Miscellaneous . | . . . . . Route ------- -11/Scrapyard -10/Materials -10/Mines (discovered 3 exits: [*Mat x2] / *Exi) -10/Exiles (discovered 2 exits: [*Min x2]) -9/Mines History --------- Turn | Location | Event 16 | -11/Scrapyard | Discovered new exit (range 15) 257 | -11/Scrapyard | Entered Materials 311 | -10/Materials | Build established: Mutant 464 | -10/Materials | Lost 3 parts (1p2w) 727 | -10/Materials | Discovered new exit (range 7) 822 | -10/Materials | Entered Mines 846 | -10/Mines | Met a Derelict bent on vengeance 857 | -10/Mines | Learned 4 Materials zone layouts 936 | -10/Mines | Discovered new exit (range 10) 1383 | -10/Mines | Discovered new exit (range 14) 1441 | -10/Mines | Deemed a non-threat by the Exiles lab entrance 1441 | -10/Mines | Discovered new exit (range 5) 1492 | -10/Mines | Learned Materials security intel 1653 | -10/Mines | Received a Rocket Launcher from a helpful Derelict 1891 | -10/Mines | Build established: Scavenger-Mutant 1900 | -10/Mines | Excavation squad dispatched 1900 | -10/Mines | A large section of the Mines collapsed 2186 | -10/Mines | Entered Exiles 2213 | -10/Exiles | Discovered new exit (range 15) 2267 | -10/Exiles | Met 8R-AWN 2294 | -10/Exiles | Met EX-HEX 2381 | -10/Exiles | Met EX-DEC 2425 | -10/Exiles | Visited The Gauntlet 2748 | -10/Exiles | Met EX-BIN 2775 | -10/Exiles | Aligned with FarCom system 2777 | -10/Exiles | Given EX-Vault access code 2865 | -10/Exiles | Opened EX-Vault 2938 | -10/Exiles | Exiles lab attacked by MAIN.C 2947 | -10/Exiles | Found 0b10 Alert Chip 3093 | -10/Exiles | Discovered new exit (range 14) 3115 | -10/Exiles | Left Exiles lab with 0b10 Alert Chip 3115 | -10/Exiles | Entered Mines 3263 | -9/Mines | Crushed by falling debris 3311 | -9/Mines | Crushed by falling debris 3312 | -9/Mines | Core integrity fell below 50% 3338 | -9/Mines | Crushed by falling debris 3339 | -9/Mines | Core integrity fell below 20% 3339 | -9/Mines | System corruption reached 10% 3472 | -9/Mines | Assembled infested the area 3477 | -9/Mines | Assisted by a Guerilla fighting off Assembled 3485 | -9/Mines | Destroyed by as-87236 with Assembled Rifle Last Messages --------------- 03398_ Acquired 14 matter. 03405_ The unstable cave ceiling collapses. 03412_ System corrupted: Heat flow error (+116). 03412_ The unstable cave ceiling collapses. 03446_ System corrupted: Component data lost. 03472_ ALERT: Infestation in the mines, dispatching Demolisher response squad. 03474_ T-07 Excavator destroyed. 03477_ A derelict emerges from the shadows: "You need to get out of here! I've been tracking a group of Assembled to figure out where they're coming from, and they're closing on this area, come on!" 03479_ R0-S4P(h) shuts down. 03482_ as-90025 destroyed. 03482_ R0-S4P(h) destroyed. 03483_ System corrupted: Component data lost. 03484_ Destroyed Asb. Hover Unit. 03484_ as-81837 destroyed. 03484_ as-17893 destroyed. 03484_ as-36998 destroyed. 03484_ Destroyed Asb. F-torch. Map ----- +----------------------------------------------------+ | ???????????????????# ??????# #?????? | | ???????????????????? ?????# #?????? | | ????????????????????# ????## #?????? | | ????????????????##### ??## #?????? | | ???????????????? ?## ##????? | | ??????????????? ## ##???? | | ???????????????????# #???? | | ??????????????? #### #???? | | ??????????????? #???? | | ??????????????? #???? | | ????????????????###### ##??? | | ?????????????????????## #??? | | ??????????????????????## #??? | | ???????????????????????## #??? | | ????????????????????????### ## #??? | | ??????????????????????????# ### ##??? | | ??????????????????????????# #??###???? | | ??????????????????????????# #????????? | | ??????????????????????????# #????????? | | ??????????????????????????# #????????? | | ???????????????????####???# #????????? | | ???????????## # #### ##?# #????????? | | ???????????# ## #????????? | | ????????????# # #????????? | | ???????? !aaa aa a %*! # #????????? | | ???????? aa @ #????????? | | ???????? a aa ###????????? | | ?????????? aa ### ##??????????? | | ??????????? ????# #???????????? | | ??????????? ???????# ???????????? | | ????????????????????# ??????????? | | ????????????????????## ?????????? | | ?????????????????????##### ?????????? | | ??????????????????????????###????????? | | ?????????????????????????????????????? | | | | | | | | | | | | | | | | | | | | | | | | | | | | | | | +----------------------------------------------------+ Best States ------------- Heat Dissipation 25 Energy Generation 10 Energy Capacity 250 Matter Stores 300 Matter Capacity 300 Sight Range 16 Terrain Scan Density 60 Evasion (%) 40 Item Schematics ----------------- None Robot Schematics ------------------ None Fabricated ------------ Nothing Alien Tech Used ----------------- None Achievements -------------- Part-time Excavator Challenges ------------ None Game ------ Seed DisruptorGaussRifle Manual? 0 Play Time 00:38:21 Cumulative 18.9 hours Start 2019.12.08 @ 21:10:21 End 2019.12.08 @ 21:59:22 Sessions 1 Manual Loads 0 Difficulty Rogue Special Mode None Game No. 11 Rogue 11 Adventurer 0 Explorer 0 Win Type - Total 0 Types 0/0/0/0/0/0/0 Lore% 20 Gallery% 18 Achievement% 16 Wizard Run 0 Options --------- ASCII 1 Keyboard 1 Movement Numpad Keybinds 1 Fullscreen 2 Font 16/SmallcapsGlow Map View 75x55 Tactical HUD 1 Map Filters NONE Filters NONE Steam 0 RUN: 4867bafb-5f38-4a5e-a1b5-e775370aaa58